bitfinex-derivatives/quotes_SOLF0:USTF0_20250624
["timestamp","ask_amount","ask_price","bid_price","bid_amount"]
[1750777150699,5.20764728,145.08,145.06,6.8899]
[1750777150889,4.36510408,145.1,145.06,6.8899]
[1750777151089,12.09566971,145.09,145.06,6.8899]
[1750777151399,4.36510408,145.1,145.02,4.36510408]
[1750777151596,5.21530699,145.09,145.02,12.88322106]
[1750777151892,4.36510408,145.1,145.02,12.88322106]
[1750777152291,5.2153055,145.09,145.02,12.88322106]
[1750777152496,4.36510408,145.1,145.02,8.51811698]
[1750777152693,5.22431243,145.09,145.03,4.36510408]
[1750777152897,11.25340408,145.1,145.07,6.8892]
[1750777153200,5.22431243,145.09,145.04,2.2457]
[1750777153494,5.22431243,145.08,145.05,6.8903]
[1750777153683,12.11609907,145.07,145.04,2.2457]
[1750777153888,4.36510408,145.08,145.01,53.76822106]
[1750777154097,4.36510408,145.06,145.01,40.885]
[1750777154287,5.22643717,145.05,145.01,2.3737]
[1750777154592,5.22655238,145.04,145.01,2.3737]
[1750777154795,6.8915,145.03,145.01,2.3737]
[1750777154990,4.36510408,145.06,144.96,12.53024416]
[1750777154991,25.03521267,145.02,144.96,6.19471834]
[1750777155196,4.35521267,144.96,144.78,2.2784]
[1750777155392,6.8995,144.86,144.78,2.2784]
[1750777155599,4.35521267,144.97,144.8,11.25711267]
[1750777155600,4.35521267,144.88,144.8,11.25711267]
[1750777155792,4.35521267,144.86,144.78,2.2784]
[1750777155990,37.86,144.88,144.78,2.2784]
[1750777155991,10.32023029,144.85,144.78,2.2784]
[1750777156192,4.35521267,144.82,144.78,2.2784]
[1750777156798,5.07991905,144.81,144.78,2.2784]
[1750777156997,4.35521267,144.82,144.78,2.2784]
[1750777157200,4.35521267,144.82,144.78,9.1812]
[1750777157793,4.35521267,144.82,144.79,6.9028]
[1750777158001,4.35521267,144.8,144.71,42.23521267]
[1750777158200,4.35521267,144.8,144.76,6.9039]
[1750777158398,6.9019,144.81,144.76,6.9039]
[1750777159103,6.9019,144.81,144.77,6.9037]
[1750777160006,7.28118982,144.82,144.72,9.68608982]
[1750777160210,7.28118982,144.82,144.73,4.6657]
[1750777160590,6.9019,144.81,144.77,6.9034]
[1750777160991,7.28118982,144.82,144.73,4.6657]
[1750777161190,6.9015,144.82,144.73,4.6657]
[1750777162009,6.9015,144.82,144.77,6.9034]
[1750777162205,6.902,144.81,144.77,6.9034]
[1750777163495,37.88,144.84,144.73,4.6657]
[1750777164008,6.9015,144.82,144.73,4.6657]
[1750777164303,37.88,144.84,144.73,4.6657]
[1750777164502,6.901,144.83,144.73,4.6657]
[1750777165101,44.7806,144.84,144.73,4.6657]
[1750777165305,37.88,144.84,144.73,4.6657]
[1750777166097,6.901,144.83,144.79,6.9027]
[1750777166505,7.28108515,144.83,144.75,7.28108515]
[1750777166701,37.88,144.84,144.75,7.28108515]
[1750777166902,37.88,144.84,144.82,6.9013]
[1750777167108,37.88,144.84,144.75,45.20108515]
[1750777167802,44.7804,144.84,144.75,45.20108515]
[1750777168207,44.7804,144.84,144.8,6.902]
[1750777169110,37.88,144.84,144.81,6.9017]
[1750777169909,14.18108515,144.85,144.81,6.9017]
[1750777170119,14.18108515,144.85,144.75,45.20108515]
[1750777170120,5.36282611,144.89,144.79,45.20108515]
[1750777170301,37.92,144.89,144.8,2.417]
[1750777170607,37.92,144.92,144.83,7.28108515]
[1750777170811,37.92,144.92,144.8,2.417]
[1750777170812,6.28126954,144.92,144.85,7.28108515]
[1750777171019,6.28126954,144.92,144.9,6.8973]
[1750777171205,6.28126954,144.92,144.87,7.28108515]
[1750777171404,6.28126954,144.92,144.84,42.4901]
[1750777171612,6.28126954,144.92,144.85,7.28108515]
[1750777171816,6.28126954,144.92,144.84,49.77118515]
[1750777172505,6.28126954,144.92,144.86,7.28108515]
[1750777172713,6.8958,144.94,144.9,6.8973]
[1750777172901,37.92,144.95,144.9,6.8973]
[1750777173317,37.92,144.95,144.91,6.897]
[1750777173514,37.92,144.95,144.88,7.28108515]
[1750777173707,6.896,144.94,144.88,7.28108515]
[1750777174012,37.92,144.95,144.88,7.28108515]
[1750777174605,6.8965,144.93,144.9,6.8973]
[1750777175616,37.92,144.95,144.89,6.8979]
[1750777176802,6.897,144.92,144.89,6.8979]
[1750777177207,6.898,144.9,144.85,7.28108515]
[1750777177707,6.898,144.9,144.87,6.8987]
[1750777179016,6.8973,144.91,144.87,6.8987]
[1750777179315,7.28108515,144.94,144.87,6.8987]
[1750777180019,7.28108515,144.94,144.88,6.8985]
[1750777180317,7.28108515,144.94,144.85,7.28108515]
[1750777180520,6.8975,144.91,144.87,6.8988]
[1750777181417,7.28108515,144.94,144.85,7.28108515]
[1750777181418,7.28108515,144.94,144.86,6.8993]
[1750777181719,7.28108515,144.94,144.85,7.28108515]
[1750777182219,6.8975,144.91,144.87,6.8989]
[1750777182919,5.32056273,144.9,144.87,6.8989]
[1750777183220,6.8975,144.91,144.87,6.8989]
[1750777183413,12.21816273,144.9,144.87,6.8989]
[1750777183613,6.8976,144.9,144.87,6.8989]
[1750777183814,5.32902475,144.89,144.87,6.8989]
[1750777184015,6.8976,144.9,144.87,6.8989]
[1750777184218,5.32902475,144.89,144.87,6.8989]
[1750777184517,6.8976,144.9,144.87,6.8989]
[1750777184819,5.32903351,144.89,144.87,6.8989]
[1750777185019,6.8976,144.9,144.87,6.8989]
[1750777185224,5.32903351,144.89,144.85,7.28108515]
[1750777185421,37.92,144.91,144.85,7.28108515]
[1750777185722,6.8985,144.89,144.86,6.8991]
[1750777186528,6.8978,144.9,144.87,6.899]
[1750777186728,37.92,144.91,144.85,7.28108515]
[1750777187021,44.8173,144.91,144.88,6.8983]
[1750777187417,624.08108515,145.0,144.88,7.26555757]
[1750777187418,42.57277187,144.94,144.88,7.26555757]
[1750777187613,6.8957,144.94,144.91,6.8968]
[1750777187816,37.52,144.96,144.9,7.26555757]
[1750777188016,37.52,144.96,144.91,7.26334655]
[1750777188221,44.415,144.96,144.93,6.8961]
[1750777188821,6.8952,144.95,144.93,6.8961]
[1750777189122,37.52,144.96,144.93,6.8961]
[1750777189330,6.8952,144.95,144.93,6.8961]
[1750777190223,37.52,144.99,144.91,7.26334655]
[1750777190534,5.06542277,144.98,144.93,7.26334655]
[1750777190719,37.52,144.99,144.95,6.895]
[1750777190917,5.06542746,144.98,144.95,6.895]
[1750777191220,6.8941,144.98,144.95,6.895]
[1750777191534,37.52,144.99,144.95,6.895]
[1750777191821,11.96587676,144.98,144.95,6.895]
[1750777192022,37.52,144.99,144.93,7.26334655]
[1750777192225,5.07187664,144.98,144.93,7.26334655]
[1750777192523,37.52,144.99,144.92,42.1435]
[1750777192712,5.07187119,144.98,144.92,42.1435]
[1750777192917,5.07187119,144.97,144.92,42.1435]
[1750777193211,37.52,144.99,144.94,6.8952]
[1750777193417,5.07186326,144.98,144.94,6.8952]
[1750777193722,6.8947,144.97,144.94,6.8952]
[1750777193924,37.52,144.99,144.93,6.896]
[1750777194222,6.8951,144.96,144.92,42.1435]
[1750777195021,6.8951,144.96,144.93,6.896]
[1750777195616,6.8945,144.97,144.92,42.1435]
[1750777196218,6.8939,144.98,144.92,42.1435]
[1750777197028,6.8943,144.97,144.95,6.8949]
[1750777198320,5.10224649,144.96,144.95,6.8949]
[1750777198724,6.8948,144.96,144.94,6.8954]
[1750777199220,6.8945,144.97,144.95,6.8951]
[1750777199622,5.11049311,144.96,144.95,6.8951]
[1750777200722,37.5,145.02,144.94,7.26014131]
[1750777200918,37.5,145.02,144.96,7.26014131]
[1750777201120,733.9,145.07,144.99,7.25686971]
[1750777201121,595.7,145.07,144.99,7.25686971]
[1750777201329,2.80890321,145.06,145.0,2.2469]
[1750777201529,6.8913,145.04,145.0,2.2469]
[1750777201724,2.80898687,145.06,145.01,6.8921]
[1750777201925,640.45686971,145.07,145.0,2.2469]
[1750777202126,5.19932713,145.06,144.99,6.8932]
[1750777202340,5.19932713,145.05,144.99,6.8932]
[1750777202544,640.45686971,145.07,144.97,7.25686971]
[1750777202545,6.8917,145.03,144.97,7.25686971]
[1750777203048,6.892,145.02,144.97,7.25686971]
[1750777203544,6.892,145.02,144.99,6.893]
[1750777203747,6.8924,145.01,144.99,6.893]
[1750777203940,5.1929967,145.06,144.99,6.893]
[1750777204138,640.45686971,145.07,145.0,6.8928]
[1750777204444,8.00462271,145.06,144.97,7.25686971]
[1750777204641,2.81169559,145.06,144.96,37.5]
[1750777204838,12.450001,145.05,144.96,37.5]
[1750777205140,2.81173274,145.06,144.96,44.75686971]
[1750777205336,640.45686971,145.07,144.96,44.75686971]
[1750777205534,640.45686971,145.07,144.98,7.25686971]
[1750777205831,640.45686971,145.07,145.02,6.8918]
[1750777205832,6.8906,145.05,145.02,6.8918]
[1750777206135,633.2,145.07,145.0,7.25686971]
[1750777206136,37.5,145.07,145.0,7.25686971]
[1750777206339,6.895,145.1,145.0,7.25686971]
[1750777206340,12.07738088,145.09,145.02,7.25686971]
[1750777206647,37.5,145.1,145.04,7.25686971]
[1750777206838,6.889,145.08,145.04,7.25686971]
[1750777207037,37.5,145.1,145.04,7.25686971]
[1750777207936,44.3885,145.1,145.07,6.8891]
[1750777208139,37.48,145.13,145.04,7.25686971]
[1750777208342,37.48,145.13,145.04,44.73686971]
[1750777208542,37.48,145.13,145.06,7.25686971]
[1750777209139,37.48,145.13,145.07,2.2899]
[1750777210140,44.367,145.13,145.07,9.54676971]
[1750777210347,37.48,145.13,145.07,9.54676971]
[1750777210537,37.48,145.13,145.08,2.3703]
[1750777210733,37.48,145.13,145.1,6.8876]
[1750777210938,37.48,145.16,145.09,7.25686971]
[1750777211137,37.48,145.16,145.13,6.8864]
[1750777211440,37.48,145.16,145.09,7.25686971]
[1750777211952,37.48,145.16,145.12,6.8868]
[1750777212633,37.48,145.16,145.13,6.8865]
[1750777212838,37.48,145.16,145.09,7.25686971]
[1750777213033,37.48,145.19,145.08,39.8503]
[1750777213240,37.48,145.19,145.13,7.25686971]
[1750777213442,602.243,145.21,145.15,7.25686971]
[1750777213643,39.7604,145.22,145.15,7.25686971]
[1750777213838,6.8838,145.19,145.15,7.25686971]
[1750777214048,6.8838,145.19,145.13,37.46]
[1750777214049,37.46,145.22,145.13,44.71686971]
[1750777214638,37.46,145.22,145.16,6.8849]
[1750777214841,37.46,145.22,145.13,44.71686971]
[1750777215034,37.46,145.22,145.14,2.3918]
[1750777215551,37.46,145.22,145.15,7.25686971]
[1750777215745,37.46,145.22,145.17,6.8847]
[1750777216349,37.46,145.22,145.18,6.8842]
[1750777216554,37.46,145.22,145.15,9.46446971]
[1750777216762,2.3004,145.26,145.17,7.25686971]
[1750777216945,37.36,145.25,145.2,6.883]
[1750777217250,37.36,145.25,145.19,7.25686971]
[1750777218547,37.36,145.25,145.17,44.61686971]
[1750777218750,6.8822,145.23,145.19,6.8833]
[1750777218951,44.61686971,145.25,145.17,37.36]
[1750777219262,7.25686971,145.23,145.16,2.3332]
[1750777219555,7.25686971,145.23,145.15,2.2076]
[1750777219756,7.25686971,145.23,145.16,6.8851]
[1750777219952,7.25686971,145.23,145.15,2.2076]
[1750777220260,6.886,145.15,145.11,44.2273]
[1750777220547,7.25686971,145.17,145.08,39.6032]
[1750777220756,44.59686971,145.16,145.08,2.2632]
[1750777220948,6.8862,145.14,145.11,6.8873]
[1750777221151,37.34,145.15,145.08,2.2632]
[1750777221454,37.34,145.15,145.09,6.8883]
[1750777221455,6.8872,145.12,145.09,6.8883]
[1750777222143,37.34,145.15,145.07,7.25686971]
[1750777222451,37.34,145.15,145.09,7.25686971]
[1750777222749,44.226,145.15,145.12,6.8867]
[1750777223160,37.34,145.15,145.09,7.25686971]
[1750777223454,37.34,145.15,145.13,6.8863]
[1750777223655,6.8854,145.16,145.13,6.8863]
[1750777224156,6.8849,145.17,145.14,6.8861]
[1750777224457,37.34,145.18,145.11,7.25686971]
[1750777224647,37.34,145.18,145.13,6.8866]
[1750777224848,6.8851,145.17,145.11,7.25686971]
[1750777225155,6.8851,145.17,145.14,6.8859]
[1750777225752,37.34,145.18,145.1,46.84626971]
[1750777226257,6.8854,145.16,145.12,6.8867]
[1750777226852,6.8854,145.16,145.1,46.84626971]
[1750777227159,6.8854,145.16,145.13,6.8865]
[1750777227458,6.8857,145.15,145.13,6.8865]
[1750777227656,37.34,145.18,145.13,6.8865]
[1750777227858,37.34,145.18,145.14,6.8861]
[1750777228058,6.885,145.17,145.14,6.8861]
[1750777228850,37.34,145.18,145.1,46.84626971]
[1750777229056,37.34,145.18,145.12,7.25686971]
[1750777229362,44.2244,145.18,145.15,6.8853]
[1750777229662,37.34,145.21,145.13,4.4685]
[1750777230065,6.8848,145.17,145.14,6.8859]
[1750777230365,37.34,145.21,145.13,4.4685]
[1750777230564,7.25686971,145.18,145.1,39.5894]
[1750777230760,7.25686971,145.16,145.07,37.34]
[1750777230966,6.8874,145.12,145.09,6.8884]
[1750777231266,37.34,145.15,145.07,37.34]
[1750777231267,7.25686971,145.14,145.07,37.34]
[1750777231658,6.8874,145.12,145.09,6.8885]
[1750777231868,7.25686971,145.14,145.09,6.8885]
[1750777232064,7.25686971,145.14,145.07,37.34]
[1750777232561,39.5927,145.15,145.07,37.34]
[1750777232761,7.25686971,145.18,145.08,7.25686971]
[1750777233070,13.765,145.22,145.08,7.25686971]
[1750777233071,6.8839,145.19,145.12,7.25686971]
[1750777233365,37.34,145.21,145.13,2.4194]
[1750777233366,42.49161914,145.21,145.13,2.4194]
[1750777233561,44.59686971,145.21,145.13,2.4194]
[1750777233757,6.8846,145.18,145.15,6.8856]
[1750777234469,44.59686971,145.21,145.14,6.886]
[1750777234964,6.885,145.17,145.14,6.886]
[1750777235669,6.885,145.17,145.13,2.4194]
[1750777235865,7.25686971,145.19,145.12,37.34]
[1750777236078,7.25686971,145.19,145.14,6.8859]
[1750777236265,44.59686971,145.21,145.12,37.34]
[1750777236465,6.8845,145.18,145.12,37.34]
[1750777236666,6.8845,145.18,145.15,6.8855]
[1750777237168,6.8848,145.17,145.15,6.8855]
[1750777238072,6.8853,145.16,145.14,6.886]
[1750777239172,6.8849,145.17,145.14,6.886]
[1750777239477,44.59686971,145.21,145.15,6.8857]
[1750777239478,5.16463522,145.2,145.15,6.8857]
[1750777239680,44.59686971,145.21,145.12,37.34]
[1750777239878,6.885,145.17,145.14,6.8857]
[1750777240080,44.59686971,145.21,145.14,6.8857]
[1750777240279,5.16463343,145.2,145.15,6.8856]
[1750777240575,44.59686971,145.21,145.12,37.34]
[1750777241174,37.34,145.21,145.13,9.51926971]
[1750777241372,6.884,145.19,145.16,6.8849]
[1750777241580,6.884,145.19,145.13,9.51926971]
[1750777241780,37.34,145.21,145.13,9.51926971]
[1750777241976,6.8838,145.19,145.17,6.8845]
[1750777242774,6.8835,145.2,145.18,6.8842]
[1750777242973,37.34,145.24,145.17,7.25686971]
[1750777243679,5.19024565,145.23,145.18,2.3212]
[1750777243881,6.8823,145.23,145.2,6.883]
[1750777244575,37.34,145.24,145.2,6.883]
[1750777244576,6.8824,145.22,145.2,6.883]
[1750777245378,6.8824,145.22,145.19,6.8836]
[1750777245582,6.8828,145.21,145.18,2.3212]
[1750777245777,6.8828,145.21,145.18,9.2051]
[1750777246174,37.34,145.24,145.18,9.2051]
[1750777246374,5.18959124,145.23,145.18,2.3212]
[1750777246574,6.8826,145.22,145.19,6.8837]
[1750777247574,37.34,145.24,145.18,2.3212]
[1750777247973,5.19771985,145.23,145.19,6.8835]
[1750777248180,7.25686971,145.26,145.18,2.3212]
[1750777248380,5.19776292,145.25,145.18,2.3212]
[1750777248583,5.19776292,145.24,145.19,7.25686971]
[1750777248882,8.04007419,145.23,145.18,2.3212]
[1750777249080,44.51686971,145.27,145.2,6.8833]
[1750777249272,8.03872652,145.26,145.2,6.8833]
[1750777249472,8.03872652,145.25,145.21,6.8827]
[1750777249676,8.03872652,145.24,145.18,2.3212]
[1750777249973,44.51686971,145.27,145.19,6.8835]
[1750777249974,8.03872559,145.23,145.19,6.8835]
[1750777250185,7.25686971,145.25,145.18,2.3212]
[1750777250384,8.03797722,145.24,145.18,2.3212]
[1750777250578,45.27797722,145.23,145.19,6.8838]
[1750777250776,8.03797722,145.22,145.19,6.8838]
[1750777250975,37.24,145.23,145.19,6.8838]
[1750777251177,6.8831,145.21,145.18,9.2052]
[1750777251578,6.8836,145.2,145.16,37.34]
[1750777251871,44.49686971,145.23,145.16,37.34]
[1750777252076,6.8834,145.2,145.16,37.34]
[1750777252984,6.8834,145.2,145.18,6.884]
[1750777253580,6.8838,145.19,145.17,6.8845]
[1750777253781,37.24,145.23,145.17,6.8845]
[1750777253979,37.24,145.23,145.15,7.25686971]
[1750777254178,6.8841,145.19,145.17,6.8847]
[1750777254777,37.24,145.23,145.17,6.8847]
[1750777254985,7.25686971,145.22,145.16,6.885]
[1750777255182,7.25686971,145.22,145.14,2.2944]
[1750777255382,6.8839,145.19,145.16,6.8849]
[1750777255879,7.25686971,145.22,145.16,6.8849]
[1750777256075,7.25686971,145.22,145.14,2.2944]
[1750777256886,6.8843,145.18,145.14,2.2944]
[1750777257188,7.25686971,145.22,145.14,2.2944]
[1750777257585,7.24314616,145.2,145.09,12.4973795]
[1750777257790,7.24314616,145.18,145.08,7.24314616]
[1750777257988,37.24,145.17,145.08,7.24314616]
[1750777258189,6.8856,145.16,145.13,6.8864]
[1750777258382,37.24,145.17,145.1,7.24314616]
[1750777258781,37.24,145.17,145.12,7.24314616]
[1750777259183,44.125,145.17,145.14,6.8859]
[1750777259383,37.24,145.17,145.1,7.24314616]
[1750777259578,37.24,145.17,145.08,19.74052566]
[1750777259785,6.8865,145.14,145.08,7.24314616]
[1750777259988,37.24,145.17,145.08,7.24314616]
[1750777260192,37.24,145.17,145.07,51.66100696]
[1750777260387,37.24,145.17,145.09,7.24670696]
[1750777260895,6.8855,145.16,145.13,6.8863]
[1750777261690,6.8858,145.15,145.13,6.8863]
[1750777262491,6.8854,145.16,145.13,6.8863]
[1750777262690,37.24,145.17,145.14,6.8859]
[1750777262990,37.24,145.17,145.09,7.24670696]
[1750777263287,6.886,145.15,145.12,6.8868]
[1750777263685,6.886,145.15,145.09,7.24670696]
[1750777264290,6.8854,145.16,145.09,7.24670696]
[1750777264677,6.8854,145.16,145.13,6.8864]
[1750777264878,6.8854,145.16,145.09,7.24670696]
[1750777265291,6.8854,145.16,145.13,6.8863]
[1750777265492,6.8858,145.15,145.13,6.8863]
[1750777266086,37.24,145.17,145.09,7.24670696]
[1750777266289,37.24,145.17,145.11,7.24670696]
[1750777266686,37.24,145.17,145.15,6.8853]
[1750777266883,37.24,145.17,145.11,37.26]
[1750777267681,6.8853,145.16,145.11,37.26]
[1750777267886,37.24,145.17,145.09,7.24670696]
[1750777268085,6.8852,145.16,145.09,7.24670696]
[1750777268688,6.8852,145.16,145.13,6.8864]
[1750777268998,6.8858,145.15,145.13,6.8864]
[1750777270091,37.24,145.17,145.09,7.24670696]
[1750777271487,37.24,145.17,145.07,26.91805674]
[1750777271488,44.48637724,145.17,145.07,26.91805674]
[1750777271690,44.48637724,145.17,145.07,4.7836]
[1750777271691,37.24,145.17,145.07,4.7836]
[1750777271999,37.24,145.17,145.09,7.24637724]
[1750777272496,6.8863,145.14,145.09,7.24637724]
[1750777272890,37.24,145.17,145.09,7.24637724]
[1750777273091,6.8862,145.14,145.11,6.8874]
[1750777273292,7.24637724,145.16,145.07,49.28997724]
[1750777273699,6.8864,145.14,145.12,6.887]
[1750777273902,6.8864,145.14,145.07,49.28997724]
[1750777274097,7.24637724,145.16,145.07,49.28997724]
[1750777274402,6.8867,145.13,145.11,6.8873]
[1750777274606,37.24,145.17,145.09,7.24637724]
[1750777274913,138.2,145.21,145.13,7.24637724]
[1750777274914,37.26,145.21,145.13,7.24637724]
[1750777275207,37.26,145.21,145.14,2.2859]
[1750777275399,37.26,145.21,145.14,4.6416]
[1750777275599,6.8835,145.2,145.18,6.8842]
[1750777275800,6.8835,145.2,145.14,4.6416]
[1750777275999,6.8835,145.2,145.17,6.8844]
[1750777276397,604.32574756,145.23,145.15,7.24024756]
[1750777276398,594.7,145.23,145.15,7.24024756]
[1750777276601,632.12,145.23,145.15,7.24024756]
[1750777276997,6.8825,145.22,145.15,7.24024756]
[1750777277204,632.12,145.23,145.15,7.24024756]
[1750777277708,6.8831,145.21,145.15,7.24024756]
[1750777277908,632.12,145.23,145.15,7.24024756]
[1750777278409,6.8826,145.22,145.19,6.8835]
[1750777278796,632.12,145.23,145.15,19.73762706]
[1750777279000,6.8827,145.22,145.19,6.8835]
[1750777279205,632.12,145.23,145.15,7.24024756]
[1750777279613,6.8826,145.22,145.19,6.8835]
[1750777279812,37.42,145.23,145.17,7.24024756]
[1750777280016,37.42,145.26,145.17,7.24024756]
[1750777280209,37.42,145.26,145.19,7.24024756]
[1750777280514,37.42,145.26,145.17,7.24024756]
[1750777280905,37.42,145.26,145.19,7.24024756]
[1750777281406,6.881,145.25,145.19,7.24024756]
[1750777281803,6.881,145.25,145.22,6.882]
[1750777282314,6.881,145.25,145.16,49.9173795]
[1750777282315,37.42,145.26,145.23,6.8818]
[1750777282514,37.42,145.26,145.17,7.24024756]
[1750777282705,6.8812,145.25,145.17,7.24024756]
[1750777282905,6.8812,145.25,145.22,6.8821]
[1750777283310,44.66024756,145.26,145.17,7.24024756]
[1750777283514,7.24024756,145.24,145.16,37.42]
[1750777283713,7.24024756,145.24,145.14,4.6416]
[1750777283917,6.8836,145.2,145.17,6.8845]
[1750777284519,6.8838,145.19,145.17,6.8845]
[1750777284919,37.42,145.22,145.14,4.6416]
[1750777284920,37.42,145.22,145.15,7.24024756]
[1750777285510,37.42,145.22,145.18,6.884]
[1750777285913,37.42,145.22,145.17,6.8845]
[1750777286114,37.42,145.22,145.14,11.88184756]
[1750777286310,44.66024756,145.22,145.14,4.6416]
[1750777286511,7.24024756,145.2,145.13,37.42]
[1750777286912,6.8851,145.17,145.14,6.8859]
[1750777287218,37.42,145.18,145.14,6.8859]
[1750777287619,37.42,145.18,145.13,6.8864]
[1750777287620,6.8855,145.16,145.13,6.8864]
[1750777287819,44.66024756,145.18,145.1,37.42]
[1750777288021,6.8862,145.14,145.12,6.8869]
[1750777288620,6.8862,145.14,145.11,6.8872]
[1750777288823,6.8862,145.14,145.08,6.8981]
[1750777289213,6.8858,145.15,145.09,7.24024756]
[1750777289419,37.42,145.18,145.09,7.24024756]
[1750777290029,6.8854,145.16,145.13,6.8866]
[1750777290320,37.42,145.18,145.09,7.24024756]
[1750777290520,6.8859,145.15,145.12,6.8868]
[1750777290713,6.8859,145.15,145.09,7.24024756]
[1750777291115,6.8859,145.15,145.12,6.8868]
[1750777291328,6.8854,145.16,145.09,7.24024756]
[1750777291528,37.42,145.18,145.14,6.8859]
[1750777291728,37.42,145.18,145.11,44.66024756]
[1750777291917,37.42,145.18,145.13,7.24024756]
[1750777292925,44.3046,145.18,145.15,6.8854]
[1750777293231,44.3046,145.18,145.16,6.8852]
[1750777293525,37.42,145.18,145.16,6.8852]
[1750777293925,37.42,145.18,145.17,6.8847]
[1750777294225,37.42,145.24,145.15,44.66024756]
[1750777294427,2.85666131,145.23,145.16,2.2779]
[1750777294620,37.42,145.24,145.16,2.2779]
[1750777294823,2.85666414,145.23,145.16,2.2779]
[1750777295018,6.8832,145.21,145.18,6.8839]
[1750777295731,6.8832,145.21,145.19,6.8838]
[1750777295922,37.42,145.24,145.16,2.2779]
[1750777296229,37.42,145.24,145.19,6.8835]
[1750777296415,6.8825,145.22,145.19,6.8835]
[1750777296613,37.42,145.24,145.17,7.24024756]
[1750777296828,37.42,145.24,145.21,6.8827]
[1750777297125,39.6437,145.27,145.19,7.24024756]
[1750777297522,6.8805,145.26,145.19,44.66024756]
[1750777298032,6.8805,145.26,145.23,6.8815]
[1750777298925,46.5239,145.27,145.24,6.8813]
[1750777299128,39.6437,145.27,145.19,44.66024756]
[1750777299320,6.8808,145.26,145.23,6.8818]
[1750777300230,6.8808,145.26,145.19,44.66024756]
[1750777300231,46.5239,145.27,145.24,6.8814]
[1750777300433,39.6437,145.27,145.24,6.8814]
[1750777301026,46.524,145.27,145.24,6.8814]
[1750777301229,39.6437,145.27,145.23,6.8817]
[1750777301527,6.8807,145.26,145.23,6.8817]
[1750777302123,37.42,145.27,145.19,44.66024756]
[1750777302331,37.42,145.27,145.21,7.24024756]
[1750777302631,44.3003,145.27,145.21,7.24024756]
[1750777303923,37.42,145.27,145.25,6.8808]
[1750777304228,37.42,145.27,145.21,7.24024756]
[1750777304434,44.3002,145.27,145.24,6.8813]
[1750777304836,37.42,145.27,145.19,37.42]
[1750777305026,37.42,145.27,145.2,7.24024756]
[1750777306025,37.42,145.27,145.22,7.24024756]
[1750777306333,37.42,145.27,145.23,4.33916589]
[1750777306542,37.42,145.27,145.25,6.8806]
[1750777307134,6.8798,145.28,145.23,4.33916589]
[1750777307135,6.8792,145.29,145.26,6.8805]
[1750777307341,36.9,145.3,145.23,4.33916589]
[1750777307727,36.9,145.3,145.25,6.8807]
[1750777308438,6.8803,145.27,145.24,6.8812]
[1750777308832,36.9,145.3,145.25,6.8808]
[1750777308833,6.8798,145.28,145.25,6.8808]
[1750777310139,6.8793,145.29,145.22,4.33916589]
[1750777310339,6.8793,145.29,145.24,4.33916589]
[1750777310638,36.9,145.3,145.24,4.33916589]
[1750777311125,6.8793,145.29,145.26,6.8802]
[1750777312029,6.8793,145.29,145.27,6.88]
[1750777312237,43.7788,145.3,145.27,6.88]
[1750777312440,141.1339,145.34,145.26,4.33916589]
[1750777312441,3.9139,145.34,145.26,4.33916589]
[1750777312737,4.33916589,145.32,145.24,4.33916589]
[1750777312940,4.33916589,145.32,145.26,6.8802]
[1750777313137,36.9,145.33,145.24,4.33916589]
[1750777313344,6.879,145.3,145.24,4.33916589]
[1750777313542,6.879,145.3,145.27,6.8798]
[1750777313945,6.879,145.29,145.27,6.8798]
[1750777314238,41.23916589,145.33,145.24,4.33916589]
[1750777314432,6.8785,145.31,145.24,4.33916589]